fUSD/lending_fUSD_20260315
["ID","MTS","AMOUNT","RATE_DAILY","PERIOD"]
[408394755,1773562244862,-151.0,0.00016438,2]
[408394756,1773562244871,-154.709285,0.00016438,2]
[408394757,1773562244879,-150.0,0.00016493,2]
[408394758,1773562244888,-160.0,0.00016503,2]
[408394759,1773562244897,-469.87233333,0.00016503,2]
[408394760,1773562244906,-150.0,0.00016548,2]
[408394761,1773562244915,-362.78151867,0.000166,2]
[408394762,1773562244925,-153.80287197,0.00016602,2]
[408394763,1773562244934,-6831.80150244,0.00016617,2]
[408394764,1773562244943,-200.0,0.00016627,2]
[408394765,1773562244952,-14300.48172721,0.00016656,2]
[408394766,1773562244961,-16029.73109472,0.00016667,2]
[408394767,1773562244970,-166.66,0.00016712,2]
[408394768,1773562244980,-260.64028232,0.00016929,2]
[408394769,1773562244989,-620.0,0.00016995,2]
[408394770,1773562244997,-1043.0,0.00016995,2]
[408394771,1773562245006,-1264.339,0.00016995,2]
[408394772,1773562245015,-923.0,0.00016995,2]
[408394773,1773562245024,-2481.446,0.00016995,2]
[408394774,1773562245033,-6001.0,0.00016995,2]
[408394775,1773562245043,-1061.27454404,0.00016999,5]
[408394776,1773562245052,-619.25152153,0.00016999,2]
[408394777,1773562245061,-500.0,0.00016999,2]
[408394778,1773562245070,-500.0,0.00016999,2]
[408394779,1773562245079,-500.0,0.00016999,2]
[408394780,1773562245089,-500.0,0.00016999,2]
[408394781,1773562245099,-300.0,0.00016999,2]
[408394782,1773562245108,-500.0,0.00016999,2]
[408394783,1773562245117,-500.0,0.00016999,2]
[408394784,1773562245126,-500.0,0.00016999,2]
[408394785,1773562245135,-500.0,0.00016999,2]
[408394786,1773562245144,-500.0,0.00016999,2]
[408394787,1773562245153,-500.0,0.00016999,2]
[408394788,1773562245162,-300.0,0.00016999,2]
[408394789,1773562245171,-300.0,0.00016999,2]
[408394790,1773562245180,-604413.51493393,0.00017,2]
[408394791,1773562245189,-26272.12959415,0.00017,2]
[408394792,1773562245199,-300.0,0.00017,2]
[408394793,1773562245209,-518.0,0.00017,2]
[408394794,1773562245219,-260.07913724,0.00017079,2]
[408394795,1773562245229,-150.0,0.000171,7]
[408394796,1773562245240,-202.1313925,0.00017175,2]
[408394797,1773562245249,-2000.0,0.00017176,2]
[408394798,1773562245259,-628.27,0.00017198,2]
[408394799,1773562245269,-7131.56,0.00017408,2]
[408394800,1773562245278,-288.72855791,0.00017418,2]
[408394801,1773562245287,-14300.48172721,0.00017467,2]
[408394802,1773562245297,-16029.73109472,0.00017475,2]
[408394803,1773562245306,-158.16,0.00017511,2]
[408394804,1773562245316,-16723.0971258,0.00017559,2]
[408394805,1773562245325,-1152.0,0.00017602,2]
[408394806,1773562245335,-150.41,0.00017613,2]
[408394807,1773562245344,-150.196,0.00017613,2]
[408394808,1773562245353,-150.0,0.00017613,2]
[408394809,1773562245363,-914.0,0.00017623,2]
[408394810,1773562245372,-4609.0,0.00017752,2]
[408394811,1773562245382,-150.0,0.00017808,2]
[408394812,1773562245392,-784.55377187,0.00017808,2]
[408394813,1773562245402,-150.0,0.00017863,2]
[408394814,1773562245411,-412.8427638,0.000179,2]
[408394815,1773562245420,-412.8427638,0.000179,2]
[408394816,1773562245430,-412.8427638,0.000179,2]
[408394817,1773562245441,-412.8427638,0.000179,2]
[408394818,1773562245452,-158.1686959,0.00017918,2]
[408394819,1773562245462,-195.10725217,0.00017971,2]
[408394820,1773562245472,-590.963068,0.00017989,7]
[408394821,1773562245483,-1959.56597553,0.00018,2]
[408394822,1773562245494,-276.0,0.00018009,2]
[408394823,1773562245505,-364.0,0.00018009,2]
[408394824,1773562245515,-153.56106977,0.0001814,2]
[408394825,1773562245525,-297.93592229,0.00018148,2]
[408394826,1773562245534,-14300.48172721,0.00018278,2]
[408394827,1773562245543,-16029.73109472,0.00018283,2]
[408394828,1773562245552,-7108.49,0.00018356,2]
[408394829,1773562245561,-164.0,0.00018413,7]
[408394830,1773562245571,-201.0,0.00018481,2]
[408394831,1773562245580,-462.0,0.00018493,2]
[408394832,1773562245590,-462.0,0.00018493,2]
[408394833,1773562245599,-462.0,0.00018493,2]
[408394834,1773562245608,-462.0,0.00018493,2]
[408394835,1773562245617,-462.0,0.00018493,2]
[408394836,1773562245627,-462.0,0.00018493,2]
[408394837,1773562245637,-462.0,0.00018493,2]
[408394838,1773562245647,-462.0,0.00018493,2]
[408394839,1773562245656,-462.0,0.00018493,2]
[408394840,1773562245665,-462.0,0.00018493,2]
[408394841,1773562245673,-462.0,0.00018493,2]
[408394842,1773562245683,-1466.4303,0.00018524,7]
[408394843,1773562245692,-2563.0,0.00018575,2]
[408394844,1773562245701,-308.15210792,0.00018575,2]
[408394845,1773562245711,-500.0,0.000186,2]
[408394846,1773562245720,-500.0,0.000186,2]
[408394847,1773562245729,-500.0,0.000186,2]
[408394848,1773562245738,-500.0,0.000186,2]
[408394849,1773562245747,-500.0,0.000186,2]
[408394850,1773562245756,-500.0,0.000186,2]
[408394851,1773562245765,-500.0,0.000186,2]
[408394853,1773562245774,-500.0,0.000186,2]
[408394855,1773562245784,-500.0,0.000186,2]
[408394857,1773562245793,-500.0,0.000186,2]
[408394859,1773562245802,-500.0,0.000186,2]
[408394861,1773562245811,-500.0,0.000186,2]
[408394864,1773562245820,-500.0,0.000186,2]
[408394866,1773562245830,-800.0,0.000186,2]
[408394868,1773562245842,-500.0,0.000186,2]
[408394870,1773562245851,-500.0,0.000186,2]
[408394871,1773562245860,-500.0,0.000186,2]
[408394872,1773562245870,-500.0,0.000186,2]
[408394873,1773562245879,-864.64014527,0.000186,2]
[408394874,1773562245889,-500.0,0.000186,2]
[408394875,1773562245898,-500.0,0.000186,2]
[408394876,1773562245907,-500.0,0.000186,2]
[408394877,1773562245917,-500.0,0.000186,2]
[408394878,1773562245926,-500.0,0.000186,2]
[408394879,1773562245936,-900.0,0.000186,2]
[408394880,1773562245945,-2000.0,0.00018737,2]
[408394881,1773562245954,-628.27,0.00018762,2]
[408394882,1773562245963,-158.16,0.00018762,2]
[408394883,1773562245971,-500.0,0.00018912,2]
[408394884,1773562245980,-150.0,0.00019,2]
[408394885,1773562245990,-350.0,0.00019,2]
[408394886,1773562245999,-14300.48172721,0.00019089,2]
[408394887,1773562246007,-16029.73109472,0.00019092,2]
[408394888,1773562246016,-2503.69656434,0.00019152,2]
[408394889,1773562246025,-337.0,0.00019178,2]
[408394890,1773562246034,-167.99750969,0.00019178,2]
[408394891,1773562246043,-151.0,0.00019178,2]
[408394892,1773562246052,-151.0,0.00019178,2]
[408394893,1773562246060,-151.0,0.00019178,2]
[408394894,1773562246070,-151.0,0.00019178,2]
[408394895,1773562246078,-151.0,0.00019178,2]
[408394896,1773562246087,-151.0,0.00019178,2]
[408394897,1773562246096,-151.0,0.00019178,2]
[408394898,1773562246105,-151.0,0.00019178,2]
[408394899,1773562246114,-151.0,0.00019178,2]
[408394900,1773562246123,-151.0,0.00019178,2]
[408394901,1773562246132,-151.0,0.00019178,2]
[408394902,1773562246141,-151.0,0.00019178,2]
[408394903,1773562246150,-256.242297,0.00019178,2]
[408394904,1773562246159,-189.712383,0.00019178,2]
[408394905,1773562246169,-150.23101527,0.00019178,2]
[408394906,1773562246177,-2000.0,0.000192,2]
[408394907,1773562246187,-342.0,0.0001932,2]
[408394908,1773562246196,-150.80042107,0.00019361,2]
[408394909,1773562246205,-250.0,0.000195,2]
[408394910,1773562246214,-15838.36016754,0.000195,2]
[408394911,1773562246223,-278.4676167,0.00019514,2]
[408394912,1773562246232,-6453.0,0.00019527,2]
[408394913,1773562246242,-1130.5945606,0.000196,2]
[408394914,1773562246251,-1011.24829809,0.000196,2]
[408394915,1773562246260,-1004.81164433,0.000196,2]
[408394916,1773562246269,-1380.25508411,0.000196,2]
[408394918,1773562246278,-150.0,0.000198,14]
[408394919,1773562246287,-150.0,0.000199,2]
[408394920,1773562246296,-16029.73109472,0.000199,2]
[408394921,1773562246305,-171.70924483,0.000199,2]
[408394922,1773562246314,-1900.0,0.000199,7]
[408394923,1773562246323,-217.33017447,0.000199,2]
[408394924,1773562246332,-150.0,0.000199,2]
[408394925,1773562246341,-14300.48172721,0.000199,2]
[408394926,1773562246350,-15367.29023191,0.0001998,2]
[408394927,1773562246359,-232.62078059,0.0001999,2]
[408394928,1773562246369,-1043.0,0.00019995,2]
[408394929,1773562246378,-1260.0,0.00019995,2]
[408394930,1773562246386,-923.0,0.00019995,2]
[408394931,1773562246395,-2464.0,0.00019995,2]
[408394932,1773562246404,-5467.198,0.00019995,2]
[408394933,1773562246413,-564.65798041,0.00019998,2]
[408394934,1773562246422,-500.0,0.00019998,2]
[408394935,1773562246431,-1163.56126055,0.00019999,5]
[408394936,1773562246441,-1061.27454403,0.00019999,5]
[408394937,1773562246450,-1492.06505801,0.00019999,5]
[408394938,1773562246459,-1163.56126056,0.00019999,5]
[408394939,1773562246468,-1119.43906575,0.00019999,5]
[408394940,1773562246476,-500.0,0.00019999,2]
[408394941,1773562246485,-500.0,0.00019999,2]
[408394942,1773562246495,-500.0,0.00019999,2]
[408394943,1773562246504,-500.0,0.00019999,2]
[408394944,1773562246513,-500.0,0.00019999,2]
[408394945,1773562246522,-500.0,0.00019999,2]
[408394946,1773562246531,-244.23410446,0.00019999,2]
[408394947,1773562246540,-500.0,0.00019999,2]
[408394948,1773562246550,-500.1490798,0.00019999,2]
[408394949,1773562246559,-172.6439,0.0002,2]
[408394950,1773562246568,-172.6439,0.0002,2]
[408394951,1773562246577,-172.6439,0.0002,2]
[408394952,1773562246587,-172.6439,0.0002,2]
[408394953,1773562246596,-172.6439,0.0002,2]
[408394954,1773562246605,-172.6439,0.0002,2]
[408394955,1773562246614,-2243757.16727435,0.0002,2]
[408394956,1773562246624,-4233.76529843,0.0002,2]
[408394957,1773562246633,-363.84,0.0002,2]
[408394958,1773562246642,-151.0,0.0002,2]
[408394959,1773562246651,-260.000001,0.0002,2]
[408394960,1773562246660,-181821.01781748,0.0002,2]
[408394961,1773562246669,-1318.31522047,0.0002,2]
[408394962,1773562246678,-200.0,0.0002,2]
[408394963,1773562246686,-191.05,0.0002,2]
[408394964,1773562246695,-200.0,0.0002,2]
[408394965,1773562246704,-152.0,0.0002,3]
[408394966,1773562246714,-161.0,0.0002,3]
[408394967,1773562246723,-158.72,0.00020548,2]
[408394968,1773562246733,-218.3,0.000206,7]
[408394969,1773562246741,-6831.80150244,0.00020635,2]
[408394970,1773562246750,-166.66,0.00020639,2]
[408394971,1773562246759,-6127.82559291,0.00020915,9]
[408394972,1773562246768,-518.0,0.00020938,5]
[408394973,1773562246777,-164.0,0.00021,14]
[408394974,1773562246786,-400.0,0.00021,2]
[408394975,1773562246795,-376.24,0.00021061,2]
[408394976,1773562246804,-481.0,0.00021448,10]
[408394977,1773562246813,-16967.0,0.00021448,10]
[408394978,1773562246822,-9035.0,0.0002148,2]
[408394979,1773562246831,-376.24,0.00021537,2]
[408394980,1773562246845,-2500.0,0.00021917,2]
[408394981,1773562246854,-2500.0,0.00021917,2]
[408394982,1773562246863,-2500.0,0.00021917,2]
[408394983,1773562246872,-2500.0,0.00021917,2]
[408394984,1773562246881,-2500.0,0.00021917,2]
[408394985,1773562247013,-2500.0,0.00021917,2]
[408394986,1773562247022,-1445.1719844,0.00021917,2]
[408394987,1773562247031,-5000.0,0.00021918,2]
[408394988,1773562247040,-156.95,0.00021918,2]
[408394989,1773562247049,-151.0,0.00021918,2]
[408394990,1773562247059,-151.0,0.00021918,2]
[408394991,1773562247068,-151.0,0.00021918,2]
[408394992,1773562247077,-151.00001,0.00021918,2]
[408394993,1773562247086,-2011.23343097,0.00022,2]
[408394994,1773562247095,-151.0,0.00022,2]
[408394995,1773562247105,-376.26074035,0.00022014,2]
[408394996,1773562247113,-181.92,0.000224,60]
[408394997,1773562247123,-193.18962225,0.000225,2]
[408394998,1773562247132,-152.0,0.00022625,3]
[408394999,1773562247141,-297.93592229,0.00022699,2]
[408395000,1773562247150,-2000.0,0.000229,2]
[408395001,1773562247159,-2324.88,0.00022925,2]
[408395002,1773562247168,-665.474,0.00022995,2]
[408395003,1773562247178,-923.0,0.00022995,2]
[408395004,1773562247187,-151.0,0.00023,2]
[408395005,1773562247196,-450.0,0.00023,2]
[408395006,1773562247205,-150.0,0.00023076,7]
[408395007,1773562247215,-296.699099,0.00023079,7]
[408395008,1773562247224,-189.6,0.000232,14]
[408395009,1773562247233,-11047.0,0.00023628,2]
[408395010,1773562247243,-492.469223,0.00023985,30]
[408395011,1773562247252,-150.0,0.00024,2]
[408395012,1773562247261,-469.87233333,0.00024,10]
[408395013,1773562247271,-469.87233333,0.00024,7]
[408395014,1773562247280,-166.66,0.00024566,2]
[408395015,1773562247289,-6831.80150244,0.00024652,2]
[408395016,1773562247298,-1000.0,0.00024658,2]
[408395017,1773562247307,-278.97,0.00024658,2]
[408395018,1773562247315,-150.0,0.00024658,2]
[408395019,1773562247325,-3421.670701,0.00024698,30]
[408395020,1773562247335,-2651.95954893,0.00024769,4]
[408395021,1773562247344,-518.0,0.00024875,9]
[408395022,1773562247354,-500.0,0.00025,30]
[408395023,1773562247364,-500.0,0.00025,30]
[408395024,1773562247373,-500.0,0.00025,30]
[408395025,1773562247382,-500.0,0.00025,30]
[408395026,1773562247391,-500.0,0.00025,30]
[408395027,1773562247400,-500.0,0.00025,30]
[408395028,1773562247409,-500.0,0.00025,30]
[408395029,1773562247418,-636.83467056,0.00025,30]
[408395030,1773562247428,-500.0,0.00025,30]
[408395031,1773562247437,-500.0,0.00025,30]
[408395032,1773562247446,-500.0,0.00025,30]
[408395033,1773562247456,-501.40106128,0.00025,30]
[408395034,1773562247465,-500.0,0.00025,30]
[408395035,1773562247474,-500.0,0.00025,30]
[408395036,1773562247483,-500.0,0.00025,30]
[408395037,1773562247492,-500.0,0.00025,30]
[408395038,1773562247502,-500.0,0.00025,30]
[408395039,1773562247511,-500.0,0.00025,30]
[408395040,1773562247520,-500.0,0.00025,30]
[408395041,1773562247530,-500.0,0.00025,30]
[408395042,1773562247539,-500.0,0.00025,30]
[408395043,1773562247548,-500.0,0.00025,30]
[408395044,1773562247558,-272.70007718,0.00025,30]
[408395045,1773562247567,-500.0,0.00025,30]
[408395046,1773562247576,-500.0,0.00025,30]
[408395047,1773562247585,-500.0,0.00025,30]
[408395048,1773562247595,-500.0,0.00025,30]
[408395049,1773562247603,-500.0,0.00025,30]
[408395050,1773562247613,-500.0,0.00025,30]
[408395051,1773562247622,-500.0,0.00025,30]
[408395052,1773562247631,-500.0,0.00025,30]
[408395053,1773562247641,-500.0,0.00025,30]
[408395054,1773562247650,-500.0,0.00025,30]
[408395055,1773562247660,-1119.1827055,0.00025,2]
[408395056,1773562247669,-208.49204698,0.00025,2]
[408395057,1773562247679,-1793.29856408,0.00025,2]
[408395058,1773562247688,-540.0,0.00025,2]
[408395059,1773562247697,-613.71167137,0.00025,2]
[408395060,1773562247706,-168.09158122,0.00025,2]
[408395061,1773562247715,-500.0,0.00025,30]
[408395062,1773562247725,-500.0,0.00025,30]
[408395063,1773562247734,-500.0,0.00025,30]
[408395064,1773562247743,-500.0,0.00025,30]
[408395065,1773562247752,-500.0,0.00025,30]
[408395066,1773562247762,-500.0,0.00025,30]
[408395067,1773562247771,-500.0,0.00025,30]
[408395068,1773562247780,-50000.0,0.00025,10]
[408395069,1773562247789,-469.87233333,0.00025,30]
[408395070,1773562247798,-469.87233333,0.00025,10]
[408395071,1773562247808,-150.0,0.00025,2]
[408395072,1773562247817,-202.0987232,0.00025,5]
[408395073,1773562247826,-150.0,0.00025,2]
[408395074,1773562247835,-244.26658027,0.00025014,2]
[408395075,1773562247846,-151.0,0.0002515,2]
[408395076,1773562247856,-152.0,0.0002525,3]
[408395077,1773562247865,-156.95,0.00025342,2]
[408395078,1773562247874,-151.0,0.000258,2]
[408395079,1773562247883,-469.87233333,0.000258,3]
[408395080,1773562247892,-285.75139568,0.00025846,30]
[408395081,1773562247901,-150.0,0.0002589,2]
[408395082,1773562247910,-923.0,0.00025995,2]
[408395083,1773562247919,-469.87233333,0.000265,3]
[408395084,1773562247929,-2000.0,0.000266,2]
[408395085,1773562247938,-1437.5185222,0.00026991,2]
[408395086,1773562247947,-194.905143,0.00027,2]
[408395087,1773562247956,-161.0,0.00027,3]
[408395088,1773562247966,-150.0,0.00027185,2]
[408395089,1773562247975,-297.93592229,0.00027249,2]
[408395090,1773562247985,-300.0,0.00027397,2]
[408395091,1773562247994,-1000.0,0.00027397,20]
[408395092,1773562248003,-278.97,0.00027397,2]
[408395093,1773562248012,-153.337539,0.00027397,2]
[408395094,1773562248021,-151.0,0.00027397,2]
[408395095,1773562248030,-151.0,0.00027397,2]
[408395096,1773562248040,-151.0,0.00027397,2]
[408395097,1773562248049,-151.0,0.00027397,2]
[408395098,1773562248058,-151.0,0.00027397,2]
[408395099,1773562248068,-151.0,0.00027397,2]
[408395100,1773562248078,-151.0,0.00027397,2]
[408395101,1773562248087,-151.0,0.00027397,2]
[408395102,1773562248096,-151.0,0.00027397,2]
[408395103,1773562248105,-151.0,0.00027397,2]
[408395104,1773562248114,-151.0,0.00027397,2]
[408395105,1773562248123,-151.0,0.00027397,2]
[408395106,1773562248132,-151.0,0.00027397,2]
[408395107,1773562248142,-175.875112,0.00027397,2]
[408395108,1773562248151,-36527.24949746,0.00027397,10]
[408395109,1773562248304,-495.28295223,0.00027397,10]
[408395110,1773562248315,-776.90309751,0.00027397,10]
[408395111,1773562248326,-4433.4744528,0.00027397,10]
[408395112,1773562248335,-4703.2155472,0.00027397,10]
[408395113,1773562248570,-500.0,0.00012791,2]
[408395114,1773562248579,-500.0,0.00013065,2]
[408395115,1773562248588,-3755.0,0.00016997,2]
[408395116,1773562248597,-462.0,0.00018493,2]
[408395117,1773562248606,-462.0,0.00018493,2]
[408395118,1773562248615,-179.19835551,0.00018493,2]
[408395119,1773562248626,-282.80164449,0.00018493,2]
[408395120,1773562248635,-462.0,0.00018493,2]
[408395121,1773562248645,-462.0,0.00018493,2]
[408395122,1773562248654,-462.0,0.00018493,2]
[408395123,1773562248663,-462.0,0.00018493,2]
[408395124,1773562248672,-462.0,0.00018493,2]
[408395125,1773562248681,-462.000002,0.00018493,2]
[408395126,1773562248690,-2075.729,0.00019997,2]
[408395127,1773562248699,-4984.81640273,0.00027397,10]
[408395128,1773562267751,1075.391252,7.945e-05,2]
[408395129,1773562541259,172.0,5.5e-07,2]
[408395132,1773562868116,10000.01,0.00011926,2]
[408395133,1773562868138,10000.01,0.00011926,2]
[408395134,1773562868159,10000.01,0.00011926,2]
[408395135,1773562868181,2099.26,0.00011926,2]
[408395136,1773562989227,1000.0,0.000115,2]
[408395137,1773563002496,1000.0,0.000113,2]
[408395138,1773563011143,500.0,0.00011,2]
[408395139,1773563012394,166.66,0.00011223,2]
[408395140,1773563012933,166.66,0.00011459,2]
[408395141,1773563013143,166.66,0.00011695,2]
[408395142,1773563013553,166.66,0.00011931,2]
[408395144,1773563054105,1941.425166,0.00011961,2]
[408395145,1773563248235,1059.51,0.00011707,2]
[408395146,1773563300490,1500.0,0.00011631,2]
[408395149,1773563432047,-248.0,0.00012026,2]
[408395150,1773563432059,-219.11469467,0.00012026,2]
[408395151,1773563432071,-556.60289192,0.00012026,2]
[408395152,1773563432083,-3653.00146492,0.00012026,2]
[408395153,1773563432093,-250.0,0.00012026,2]
[408395154,1773563432103,-778.54732044,0.00012031,2]
[408395155,1773563432112,-250.0,0.00012074,2]
[408395156,1773563432122,-166.66,0.00012168,2]
[408395157,1773563432132,-189.22058879,0.00012244,2]
[408395158,1773563432145,-778.54732044,0.00012252,2]
[408395159,1773563432155,-300.0,0.00012403,2]
[408395160,1773563432164,-1200.0,0.00012403,2]
[408395161,1773563432174,-300.0,0.00012403,2]
[408395162,1773563432186,-300.0,0.00012403,2]
[408395163,1773563432195,-150.99,0.00012404,2]
[408395164,1773563432205,-9999.99,0.00012404,2]
[408395165,1773563432218,-166.66,0.00012404,2]
[408395166,1773563432227,-778.54732044,0.00012473,2]
[408395167,1773563432237,-367.9632859,0.00012482,2]
[408395169,1773563432246,-150.0,0.00012488,2]
[408395171,1773563432256,-2298.67924229,0.00012489,2]
[408395173,1773563432265,-5574.75986477,0.00012489,2]
[408395175,1773563432274,-5026.2270462,0.00012489,2]
[408395177,1773563432283,-6123.29268341,0.00012489,2]
[408395179,1773563432293,-5666.43772646,0.00012489,2]
[408395180,1773563432302,-394.66775261,0.00012489,2]
[408395181,1773563432311,-914.63705818,0.00012489,2]
[408395182,1773563432321,-299.99,0.00012497,2]
[408395183,1773563432331,-331.19380092,0.00012498,2]
[408395184,1773563432340,-5123.85112683,0.00012498,2]
[408395185,1773563432351,-2266.48431264,0.00012516,2]
[408395186,1773563432360,-1769.0,0.00012555,2]
[408395187,1773563432370,-500.0,0.00012573,2]
[408395188,1773563432380,-500.0,0.00012573,2]
[408395189,1773563432392,-500.0,0.00012573,2]
[408395190,1773563432401,-500.0,0.00012573,2]
[408395191,1773563432416,-500.0,0.00012573,2]
[408395192,1773563432426,-500.0,0.00012573,2]
[408395193,1773563432439,-446.46468827,0.00012573,2]
[408395194,1773563432449,-500.0,0.00012573,2]
[408395195,1773563432459,-332.58199131,0.00012573,2]
[408395196,1773563432468,-500.0,0.00012573,2]
[408395197,1773563432478,-500.0,0.00012573,2]
[408395198,1773563432487,-500.0,0.00012573,2]
[408395199,1773563432497,-500.0,0.00012573,2]
[408395200,1773563432508,-500.0,0.00012573,2]
[408395201,1773563432527,-500.0,0.00012573,2]
[408395202,1773563432541,-407.71239442,0.00012573,2]
[408395203,1773563432550,-2859.319,0.00012573,2]
[408395204,1773563432559,-177.947,0.00012573,2]
[408395205,1773563432569,-848.62,0.00012573,2]
[408395206,1773563432578,-500.0,0.00012589,2]
[408395207,1773563432587,-151.0,0.00012589,2]
[408395208,1773563432597,-151.0,0.00012589,2]
[408395209,1773563432606,-151.0,0.00012589,2]
[408395210,1773563432615,-151.0,0.00012589,2]
[408395211,1773563432624,-151.0,0.00012589,2]
[408395212,1773563432634,-151.0,0.00012589,2]
[408395213,1773563432646,-151.0,0.00012589,2]
[408395214,1773563432655,-151.0,0.00012589,2]
[408395215,1773563432665,-151.0,0.00012589,2]
[408395216,1773563432675,-151.0,0.00012589,2]
[408395217,1773563432684,-151.0,0.00012589,2]
[408395218,1773563432693,-151.0,0.00012589,2]
[408395219,1773563432707,-151.0,0.00012589,2]
[408395220,1773563432720,-151.0,0.00012589,2]
[408395221,1773563432734,-151.0,0.00012589,2]
[408395222,1773563432747,-151.0,0.00012589,2]
[408395223,1773563432759,-151.0,0.00012589,2]
[408395224,1773563432769,-151.0,0.00012589,2]
[408395225,1773563432783,-151.0,0.00012589,2]
[408395226,1773563432796,-151.0,0.00012589,2]
[408395227,1773563432808,-1272.0,0.00012591,2]
[408395228,1773563432821,-151.0,0.00012594,2]
[408395229,1773563432834,-500.0,0.00012596,2]
[408395230,1773563432848,-500.0,0.00012596,2]
[408395231,1773563432861,-175.79289639,0.00012596,2]
[408395232,1773563432873,-32957.4135,0.00012598,2]
[408395233,1773563432885,-1000.0,0.00012598,2]
[408395234,1773563432896,-1040.0,0.00012616,2]
[408395235,1773563432908,-752.0,0.00012641,2]
[408395236,1773563432919,-165.0,0.00012669,2]
[408395237,1773563432932,-357.0,0.00012778,2]
[408395238,1773563432945,-400.0,0.000128,4]
[408395239,1773563432957,-848.62,0.00012847,2]
[408395240,1773563432969,-500.0,0.00012863,2]
[408395241,1773563432981,-378.0,0.00012868,2]
[408395242,1773563432994,-900.0,0.000129,4]
[408395243,1773563433006,-1289.0,0.00012958,2]
[408395244,1773563433019,-1532.0,0.00012984,2]
[408395245,1773563433030,-475.0,0.00013012,2]
[408395246,1773563433043,-501.0,0.00013038,2]
[408395247,1773563433055,-397.0,0.00013068,2]
[408395248,1773563433068,-684.0,0.00013086,2]
[408395249,1773563433080,-500.0,0.00013121,2]
[408395250,1773563433092,-374.70888613,0.00013121,2]
[408395251,1773563433104,-500.0,0.00013121,2]
[408395252,1773563433116,-500.0,0.00013121,2]
[408395253,1773563433128,-500.0,0.00013121,2]
[408395254,1773563433141,-1000.0,0.00013121,2]
[408395255,1773563433158,-312.49833716,0.00013121,2]
[408395256,1773563433170,-1000.0,0.00013121,2]
[408395257,1773563433183,-429.3358411,0.00013121,2]
[408395258,1773563433195,-1000.0,0.00013121,2]
[408395259,1773563433208,-848.62,0.00013121,2]
[408395260,1773563433220,-500.0,0.00013137,2]
[408395261,1773563433230,-728.32827309,0.00013224,2]
[408395262,1773563433242,-250.0,0.00013224,2]
[408395263,1773563433254,-193.0,0.00013229,2]
[408395264,1773563433269,-5000.0,0.00013229,2]
[408395265,1773563433281,-848.62,0.00013395,2]
[408395266,1773563433291,-500.0,0.00013411,2]
[408395267,1773563433301,-420.0,0.0001361,2]
[408395268,1773563433311,-300.0,0.0001361,2]
[408395269,1773563433322,-1680.0,0.00013643,2]
[408395270,1773563433334,-848.62,0.00013668,2]
[408395271,1773563433345,-617.15325388,0.00013668,2]
[408395272,1773563433358,-500.0,0.00013668,2]
[408395273,1773563433369,-1500.0,0.00013668,2]
[408395274,1773563433380,-500.0,0.00013698,2]
[408395275,1773563433391,-500.0,0.00013698,2]
[408395276,1773563433402,-500.0,0.00013698,2]